bitfinex-derivatives/quotes_ETHF0:USTF0_20241104
["timestamp","ask_amount","ask_price","bid_price","bid_amount"]
[1730708568762,1.41938309,2466.4,2466.3,0.40576]
[1730708569061,1.01362309,2466.4,2466.3,0.40576]
[1730708569256,1.41937309,2466.4,2466.3,0.40576]
[1730708569770,1.01362309,2466.4,2466.3,0.40576]
[1730708571965,1.01362309,2466.4,2466.3,3.5746526]
[1730708572160,1.01362309,2466.4,2466.3,7.6290526]
[1730708576364,1.01362309,2466.4,2466.3,8.18923964]
[1730708577171,1.01362309,2466.4,2466.3,7.6290526]
[1730708577572,1.01362309,2466.4,2466.3,8.18935775]
[1730708578175,1.01362309,2466.4,2466.3,8.18935637]
[1730708580371,1.01362309,2466.4,2466.3,9.08655955]
[1730708580570,1.01362309,2466.4,2466.3,8.5083526]
[1730708580775,1.01362309,2466.4,2466.3,9.96627392]
[1730708580981,1.01362309,2466.4,2466.3,8.5083526]
[1730708581280,1.01362309,2466.4,2466.3,9.96630126]
[1730708582274,1.01362309,2466.4,2466.3,11.02460588]
[1730708582469,1.01362309,2466.4,2466.3,9.96630126]
[1730708584169,1.01362309,2466.4,2466.3,8.5083526]
[1730708584376,1.01362309,2466.4,2466.3,9.06888651]
[1730708584573,1.01362309,2466.4,2466.3,10.52619394]
[1730708584971,1.01362309,2466.4,2466.3,9.96566003]
[1730708586078,1.01362309,2466.4,2466.3,11.02396465]
[1730708586281,1.01362309,2466.4,2466.3,12.37221598]
[1730708586476,1.01362309,2466.4,2466.3,11.02396465]
[1730708586780,1.01362309,2466.4,2466.3,12.37215203]
[1730708586981,0.4614,2466.8,2466.7,0.4057]
[1730708587171,0.82826,2467.0,2466.9,0.40567]
[1730708587483,1.26846,2467.0,2466.9,0.40567]
[1730708588478,0.40567,2466.9,2466.8,0.84768]
[1730708588684,1.26847,2467.0,2466.9,0.40567]
[1730708588888,0.40567,2466.9,2466.8,0.84768]
[1730708589576,0.4057,2466.7,2466.6,3.61352]
[1730708589771,0.4057,2466.7,2466.6,3.76792947]
[1730708589973,0.4057,2466.7,2466.6,3.2078]
[1730708591183,0.40572,2466.6,2466.5,3.2078]
[1730708591381,1.25642,2466.6,2466.5,4.17366236]
[1730708591788,0.8507,2466.6,2466.2,1.05972865]
[1730708591982,0.40576,2466.4,2466.3,0.96596555]
[1730708592182,0.4344,2466.5,2466.1,3.2078]
[1730708592487,0.4344,2466.5,2466.2,0.96613343]
[1730708592488,0.40577,2466.3,2466.2,0.96613343]
[1730708593786,0.4344,2466.5,2466.2,0.56035343]
[1730708593991,0.40575,2466.4,2466.3,0.40576]
[1730708595084,0.4344,2466.5,2466.4,0.40575]
[1730708595285,0.4344,2466.5,2466.4,0.96605611]
[1730708595486,0.84013,2466.5,2466.4,0.96605611]
[1730708595681,0.84013,2466.5,2466.4,0.96606772]
[1730708595887,0.84013,2466.5,2466.4,0.40575]
[1730708596289,0.4344,2466.5,2466.4,0.40575]
[1730708597297,0.84013,2466.5,2466.4,0.40575]
[1730708598698,0.84013,2466.5,2466.4,0.96612756]
[1730708599494,0.4344,2466.5,2466.4,0.96612756]
[1730708600295,0.84013,2466.5,2466.4,0.96612756]
[1730708600502,0.84013,2466.5,2466.4,0.40575]
[1730708600799,0.84013,2466.5,2466.4,0.56045774]
[1730708600994,0.40575,2466.4,2466.1,3.2078]
[1730708601200,0.40576,2466.3,2466.2,0.96626595]
[1730708604000,0.40576,2466.3,2466.2,0.56048595]
[1730708604200,0.40576,2466.3,2466.2,0.96626595]
[1730708607008,4.46016,2466.3,2466.2,0.56048595]
[1730708607209,4.46016,2466.3,2466.2,0.40578]
[1730708608909,0.40576,2466.4,2466.3,0.40576]
[1730708609107,0.40575,2466.4,2466.3,0.56055983]
[1730708609308,4.46015,2466.4,2466.3,0.56055983]
[1730708609606,4.46015,2466.4,2466.1,0.40579]
[1730708609607,0.40579,2466.2,2466.1,0.40579]
[1730708609811,0.40579,2466.2,2466.1,1.86352434]
[1730708611405,0.40577,2466.3,2466.2,0.40578]
[1730708611903,0.40577,2466.3,2466.2,0.96641251]
[1730708613012,0.40577,2466.3,2466.2,0.56063251]
[1730708613710,0.40577,2466.3,2466.2,0.96641251]
[1730708616815,0.40576,2466.4,2466.3,0.40576]
[1730708617113,0.40576,2466.4,2466.3,0.96639251]
[1730708617612,0.40576,2466.4,2466.3,0.56063251]
[1730708617807,0.40576,2466.3,2466.2,0.40577]
[1730708618006,0.40576,2466.3,2466.2,0.56064226]
[1730708618508,0.40576,2466.3,2466.2,0.96642226]
[1730708618909,0.40576,2466.3,2466.2,0.9664406]
[1730708619316,0.40576,2466.3,2466.2,0.40578]
[1730708619717,0.40576,2466.3,2466.2,0.96646364]
[1730708621719,0.40576,2466.3,2466.2,0.96648742]
[1730708622320,0.40576,2466.3,2466.2,0.96647681]
[1730708622820,0.40576,2466.3,2466.2,0.40578]
[1730708624119,6.11813767,2466.5,2466.3,0.40575]
[1730708624120,0.40576,2466.4,2466.3,0.40575]
[1730708624317,0.40576,2466.4,2466.3,0.85405]
[1730708626320,0.40576,2466.4,2466.3,2.87623252]
[1730708626620,0.40576,2466.4,2466.3,2.87624342]
[1730708626821,2.65825027,2466.6,2466.5,0.40573]
[1730708627028,2.65825027,2466.8,2466.6,0.40572]
[1730708627222,0.40571,2466.7,2466.6,0.86012]
[1730708628024,3.06396027,2466.7,2466.6,0.86012]
[1730708629321,0.40575,2466.5,2466.4,0.40573]
[1730708629925,0.83965,2466.5,2466.4,0.40573]
[1730708630323,0.83965,2466.5,2466.4,0.96634701]
[1730708630521,0.83965,2466.5,2466.4,0.40573]
[1730708632442,0.83965,2466.5,2466.4,0.96644785]
[1730708633825,0.83965,2466.5,2466.4,0.40573]
[1730708634031,0.83965,2466.5,2466.4,0.56084574]
[1730708634235,7.14655027,2466.5,2466.0,4.26820959]
[1730708634438,0.40579,2466.2,2466.1,1.86452396]
[1730708636326,0.40579,2466.2,2466.1,2.92493355]
[1730708637532,0.40579,2466.2,2466.1,1.46618959]
[1730708637733,0.40579,2466.2,2466.1,2.92572804]
[1730708638733,0.40577,2466.3,2466.2,0.40577]
[1730708638929,0.40577,2466.3,2466.2,1.45953845]
[1730708639529,0.40577,2466.3,2466.2,1.86531845]
[1730708639939,0.40577,2466.3,2466.2,1.45953845]
[1730708640329,0.40577,2466.3,2466.2,1.86531845]
[1730708640636,0.40577,2466.3,2466.2,1.45953845]
[1730708640828,0.40577,2466.3,2466.1,1.49720959]
[1730708640829,2.65825027,2466.4,2466.1,0.8426]
[1730708641031,0.40576,2466.3,2466.2,1.45955665]
[1730708641231,7.11841027,2466.3,2466.2,1.12262524]
[1730708641536,1.01449,2466.2,2465.8,0.4248]
[1730708641737,0.40583,2465.9,2465.8,0.4248]
[1730708641938,0.40583,2465.9,2465.8,0.83065]
[1730708642135,0.40583,2465.9,2465.8,1.71654048]
[1730708642330,0.40583,2465.9,2465.8,0.83065]
[1730708644139,0.40583,2465.9,2465.8,0.4248]
[1730708644334,0.40583,2465.9,2465.8,0.8722]
[1730708644735,0.40583,2465.9,2465.8,1.27805]
[1730708646343,0.40583,2465.9,2465.8,1.27803]
[1730708647952,0.40583,2466.0,2465.9,0.40583]
[1730708648243,0.40583,2466.0,2465.9,0.4508]
[1730708649340,0.40583,2466.0,2465.9,0.85663]
[1730708649536,0.455,2466.1,2465.9,0.85663]
[1730708649739,3.06750005,2466.3,2466.2,0.40578]
[1730708650640,2.66172005,2466.4,2466.0,1.01454]
[1730708650838,1.3126,2466.5,2466.2,0.40575]
[1730708650839,0.40578,2466.3,2466.2,0.40575]
[1730708651045,0.40576,2466.4,2466.3,0.40575]
[1730708652150,3.97432005,2466.5,2466.2,0.4539]
[1730708652353,0.4058,2466.2,2466.1,0.40579]
[1730708653549,0.4058,2466.2,2466.1,0.95911491]
[1730708653849,0.4058,2466.2,2466.1,0.55332491]
[1730708655343,0.4058,2466.2,2466.1,0.4058]
[1730708655545,0.4058,2466.2,2466.1,0.95911307]
[1730708656238,0.4058,2466.2,2466.1,0.55331307]
[1730708656438,0.4058,2466.2,2466.1,0.95911307]
[1730708658054,0.4058,2466.2,2466.1,0.55331307]
[1730708658355,0.4058,2466.2,2466.1,0.95911307]
[1730708658549,2.66172005,2466.4,2466.1,0.55331307]
[1730708658750,0.40578,2466.3,2466.2,0.95904368]
[1730708659456,0.40578,2466.3,2466.2,0.40577]
[1730708659755,0.40578,2466.3,2466.2,0.95904715]
[1730708659952,0.40578,2466.3,2466.2,0.55327715]
[1730708660152,6.45034145,2466.5,2466.1,0.40579]
[1730708660359,0.40578,2466.2,2466.1,0.40579]
[1730708660558,0.40578,2466.2,2466.1,0.95911557]
[1730708661254,0.40578,2466.3,2466.2,0.40577]
[1730708663058,0.40578,2466.3,2466.2,0.9590591]
[1730708663361,3.97432005,2466.5,2466.2,0.5532891]
[1730708663560,0.40576,2466.4,2466.3,1.25495]
[1730708668157,0.40576,2466.4,2466.3,1.80821202]
[1730708668855,0.40576,2466.4,2466.3,1.25495]
[1730708669056,0.40576,2466.4,2466.3,1.80821358]
[1730708669564,1.3126,2466.5,2466.3,1.40246358]
[1730708669864,0.40575,2466.4,2466.3,0.83295]
[1730708670260,1.3289,2466.5,2466.2,0.434]
[1730708670261,0.40576,2466.3,2466.2,0.83977]
[1730708670559,0.40576,2466.3,2466.2,0.55333098]
[1730708670560,1.8674314,2466.3,2466.2,0.55333098]
[1730708670858,1.01449,2466.2,2465.8,1.49440959]
[1730708671061,0.40583,2465.9,2465.8,0.434]
[1730708671256,1.8675014,2465.9,2465.8,0.55354543]
[1730708671451,1.8675014,2465.9,2465.6,3.6285]
[1730708671452,0.40586,2465.7,2465.6,3.6285]
[1730708671657,1.8675314,2465.7,2465.6,3.6285]
[1730708671965,1.8675314,2465.7,2465.6,4.03438]
[1730708672163,1.8675314,2465.7,2465.6,3.6285]
[1730708672664,1.8675314,2465.7,2465.6,4.03438]
[1730708673263,1.8675314,2465.7,2465.6,3.2078]
[1730708673264,3.1775314,2465.7,2465.6,3.2078]
[1730708673959,1.27036,2465.7,2465.6,3.61368]
[1730708674160,2.66172005,2466.0,2465.7,0.40586]
[1730708674364,0.4372,2466.1,2466.0,0.40581]
[1730708674669,3.06749005,2466.3,2466.2,0.40578]
[1730708674853,3.51478005,2466.4,2466.3,0.40576]
[1730708675056,0.40575,2466.4,2466.3,0.40576]
[1730708675857,2.66172005,2466.5,2466.4,0.40573]
[1730708675858,0.40574,2466.5,2466.4,0.40573]
[1730708676565,0.40576,2466.4,2466.3,0.40576]
[1730708677770,0.40574,2466.5,2466.4,0.40573]
[1730708678267,6.73232005,2466.6,2466.2,1.46915]
[1730708678566,0.40575,2466.5,2466.4,0.40573]
[1730708679770,0.40573,2466.6,2466.5,0.40573]
[1730708681771,0.40575,2466.5,2466.4,0.40574]
[1730708682471,0.40576,2466.4,2466.3,0.40576]
[1730708682669,0.86316,2466.4,2466.3,0.40576]
[1730708685175,0.4574,2466.4,2466.3,0.40576]
[1730708688272,3.2078,2466.6,2466.2,0.4547]
[1730708688471,3.2078,2466.6,2466.4,0.40575]
[1730708689574,3.56084118,2466.7,2466.4,0.40575]
[1730708690276,3.56084118,2466.7,2466.5,0.40573]
[1730708690486,2.65724118,2466.8,2466.4,1.01438]
[1730708690667,0.441,2466.9,2466.5,2.4752145]
[1730708690968,0.441,2466.9,2466.8,0.40568]
[1730708697177,7.7024,2466.9,2466.5,0.4515]
[1730708697379,5.11019626,2466.9,2466.8,0.40568]
[1730708699477,6.1236139,2466.9,2466.8,0.40568]
[1730708701281,0.40571,2466.7,2466.4,3.6508]
[1730708701583,1.30512,2466.6,2466.5,0.40572]
[1730708701878,1.30512,2466.6,2466.4,3.6508]
[1730708701879,0.40573,2466.5,2466.4,3.61354]
[1730708702085,6.36202626,2466.5,2466.4,3.2078]
[1730708702376,6.36202626,2466.5,2466.4,0.40575]
[1730708702575,6.36202626,2466.5,2466.2,0.40578]
[1730708702777,0.4405,2466.5,2466.4,0.40575]
[1730708703282,4.4949,2466.5,2466.4,0.40575]
[1730708703485,0.4405,2466.5,2466.4,0.40575]
[1730708704778,4.1072,2466.6,2466.5,0.40577]
[1730708704980,3.2078,2466.6,2466.5,0.40577]
[1730708705974,5.07496626,2466.6,2466.4,0.40578]
[1730708706276,5.07496626,2466.6,2466.1,1.3201]
[1730708706277,1.46139626,2466.5,2466.1,1.3201]
[1730708706474,1.46139626,2466.5,2466.0,3.2078]
[1730708706475,3.61362,2466.2,2466.0,0.40584]
[1730708706684,2.38359626,2466.1,2465.8,1.3168]
[1730708706877,2.38359626,2466.1,2466.0,0.40585]
[1730708707280,2.38359626,2466.1,2465.8,1.3168]
[1730708707479,2.38359626,2466.1,2465.8,0.8844]
[1730708707680,0.4223,2466.0,2465.9,0.40586]
[1730708708684,0.4223,2466.0,2465.8,0.8844]
[1730708708888,0.82816,2466.0,2465.8,1.29028]
[1730708709184,0.40587,2465.9,2465.8,0.8844]
[1730708709386,0.4059,2465.7,2465.6,3.2078]
[1730708709784,0.4059,2465.7,2465.5,0.4626]
[1730708710091,7.7074,2465.6,2464.9,1.01509]
[1730708710290,3.2078,2465.3,2465.0,1.44313001]
[1730708710496,3.2078,2465.3,2465.0,0.8841]
[1730708710686,3.2078,2465.3,2465.2,0.40599]
[1730708710885,0.4436,2465.6,2465.2,0.40599]
[1730708711082,0.4436,2465.6,2465.5,0.40594]
[1730708711785,0.4436,2465.6,2465.0,5.06683136]
[1730708711986,0.84953,2465.6,2465.4,0.40595]
[1730708712389,0.40593,2465.6,2465.4,0.40595]
[1730708712590,3.2078,2465.5,2465.0,1.89915]
[1730708712796,3.2078,2465.5,2465.1,0.406]
[1730708712994,3.2078,2465.5,2465.0,0.8841]
[1730708713396,3.61375,2465.5,2465.3,0.40596]
[1730708713702,3.2078,2465.5,2465.0,0.8841]
[1730708713888,3.61374,2465.5,2465.3,0.40596]
[1730708714292,3.61374,2465.5,2465.3,0.40597]
[1730708714293,3.61375,2465.5,2465.3,0.40597]
[1730708714895,3.61375,2465.5,2465.3,0.40596]
[1730708715097,0.40596,2465.4,2465.2,0.40597]
[1730708715289,0.40596,2465.4,2465.3,0.40597]
[1730708716187,3.61374,2465.5,2465.4,0.40595]
[1730708716995,0.40596,2465.4,2465.3,0.40596]
[1730708717400,0.40598,2465.3,2465.2,0.40598]
[1730708717590,0.84006,2465.4,2465.3,0.40596]
[1730708718500,0.4341,2465.4,2465.3,0.40596]
[1730708718898,0.84005,2465.4,2465.3,0.40596]
[1730708719399,0.4341,2465.4,2465.3,0.40596]
[1730708719697,3.61375,2465.5,2465.4,0.40595]
[1730708720401,7.2638,2465.5,2465.0,0.8841]
[1730708720698,0.40597,2465.4,2465.3,0.40596]
[1730708721399,0.40597,2465.4,2465.2,0.40597]
[1730708721400,0.40598,2465.3,2465.2,0.40597]
[1730708721592,0.86478,2465.3,2465.2,0.40597]
[1730708722405,0.4588,2465.3,2465.2,0.40597]
[1730708723395,0.86477,2465.3,2465.2,0.40597]
[1730708731501,2.32705071,2465.3,2465.2,0.40597]
[1730708733701,6.99204071,2465.3,2465.0,0.8841]
[1730708733908,6.99204071,2465.3,2464.8,0.4492]
[1730708733909,2.47732071,2465.1,2464.8,0.4492]
[1730708734110,5.07612071,2464.9,2464.8,1.30904]
[1730708734496,4.67008071,2464.9,2464.8,0.40604]
[1730708734704,3.2078,2464.9,2464.8,0.40604]
[1730708735201,1.88828,2465.2,2464.8,0.40604]
[1730708735202,3.2078,2465.2,2464.8,1.46228071]
[1730708735409,3.2078,2465.2,2465.1,0.406]
[1730708735608,3.2078,2465.2,2465.1,1.86828071]
[1730708736000,0.40596,2465.4,2465.1,1.86828071]
[1730708736307,0.40596,2465.4,2465.3,0.40597]
[1730708736703,3.61374,2465.5,2465.4,0.40595]
[1730708738511,0.40594,2465.5,2465.4,0.40595]
[1730708739209,3.61374,2465.5,2465.4,0.40595]
[1730708740902,3.2078,2465.5,2465.4,0.40595]
[1730708742107,3.61374,2465.5,2465.4,0.40595]
[1730708742515,3.2078,2465.5,2465.4,0.40595]
[1730708743214,1.86820071,2465.7,2465.6,0.40592]
[1730708745618,0.40594,2465.6,2465.5,0.40592]
[1730708745917,1.86822071,2465.6,2465.5,0.40592]
[1730708747314,1.46228071,2465.6,2465.2,0.87]
[1730708747518,0.40597,2465.3,2465.2,1.27599]
[1730708747818,0.40602,2465.1,2465.0,0.406]
[1730708748022,0.40602,2465.1,2465.0,0.8693]
[1730708749119,0.40602,2465.1,2465.0,1.3268]
[1730708751619,0.40602,2465.1,2465.0,0.8635]
[1730708752412,0.40602,2465.1,2465.0,0.4575]
[1730708753223,3.61382,2465.1,2465.0,1.01718758]
[1730708753527,3.2078,2465.1,2464.8,0.4623]
[1730708753717,3.2078,2465.1,2464.9,1.42815698]
[1730708753718,1.86830071,2465.0,2464.9,1.42815698]
[1730708754025,1.86830071,2465.0,2464.9,0.86843]
[1730708754417,1.86830071,2465.0,2464.9,1.42832418]
[1730708754623,1.86830071,2465.0,2464.9,1.02229418]
[1730708754920,8.63612189,2465.0,2464.5,1.06060207]
[1730708755125,8.63612189,2465.0,2464.6,1.42845007]
[1730708755126,1.46228071,2464.7,2464.6,1.42845007]
[1730708755321,3.2078,2464.8,2464.7,0.40607]
[1730708755525,5.43893552,2465.0,2464.9,0.40604]
[1730708756122,3.57063481,2465.0,2464.9,0.40604]
[1730708756428,3.52645481,2465.0,2464.9,0.40604]
[1730708756728,0.86582,2465.0,2464.9,0.40604]
[1730708757021,2.32810071,2465.0,2464.9,0.40604]
[1730708757226,4.98873552,2465.0,2464.9,0.40604]
[1730708757429,2.32810071,2465.0,2464.9,0.40604]
[1730708758024,0.40605,2464.9,2464.8,0.40604]
[1730708758226,2.29303071,2464.9,2464.8,0.40604]
[1730708758727,4.95337303,2464.9,2464.8,0.40604]
[1730708759234,2.29303071,2464.9,2464.8,0.40604]
[1730708759732,4.95337303,2464.9,2464.8,0.40604]
[1730708760420,0.4247,2464.9,2464.8,0.40604]
[1730708760620,4.98845303,2465.0,2464.9,0.40604]
[1730708760621,2.66034232,2465.0,2464.9,0.40604]
[1730708760826,1.86830071,2465.0,2464.9,0.40604]
[1730708761137,4.52864303,2465.0,2464.9,0.40604]
[1730708762535,0.40607,2464.7,2464.6,0.86848]
[1730708763228,0.40607,2464.7,2464.6,0.86849]
[1730708767037,0.40607,2464.7,2464.6,0.4624]
[1730708767638,0.40607,2464.7,2464.6,0.86849]
[1730708768331,0.40607,2464.7,2464.6,0.4624]
[1730708768526,0.40607,2464.7,2464.6,0.86849]
[1730708769241,0.40607,2464.7,2464.6,0.4624]
[1730708769540,0.40607,2464.7,2464.6,0.86849]
[1730708770637,5.08858071,2464.8,2464.6,0.4624]
[1730708770638,1.46228071,2464.8,2464.6,0.4624]
[1730708770839,2.30842071,2464.9,2464.8,0.40605]
[1730708771141,1.86832071,2464.9,2464.8,0.40605]
[1730708771327,1.91618071,2464.9,2464.7,0.4341]
[1730708771528,5.07613071,2464.8,2464.7,0.40606]
[1730708774736,4.67008071,2464.8,2464.7,0.40606]
[1730708774938,5.07613071,2464.8,2464.7,0.40606]
[1730708775444,5.07613071,2464.8,2464.1,0.4332]
[1730708775445,0.40615,2464.2,2464.1,0.4332]
[1730708775632,0.40615,2464.2,2464.1,1.27217]
[1730708775633,1.86843071,2464.2,2464.1,1.27217]
[1730708776442,1.46228071,2464.3,2464.2,0.40615]
[1730708776639,1.01518,2464.7,2464.2,1.46228071]
[1730708776640,3.2078,2464.7,2464.2,1.46228071]
[1730708776851,3.2078,2464.7,2464.6,0.40609]
[1730708777235,0.83166,2464.8,2464.7,0.40607]
[1730708778742,5.10918071,2464.9,2464.5,1.3241]
[1730708778743,3.2078,2464.9,2464.6,1.46228071]
[1730708778936,3.61384,2464.9,2464.8,0.40605]
[1730708779338,3.61384,2464.9,2464.5,3.80162071]
[1730708779339,3.2078,2464.9,2464.5,3.80162071]
[1730708779543,0.40607,2464.8,2464.7,0.40606]
[1730708780141,3.61385,2464.9,2464.8,0.40605]
[1730708780938,5.07613071,2464.9,2464.8,0.40605]
[1730708783045,3.61385,2464.9,2464.8,0.40605]
[1730708783549,3.2078,2464.9,2464.8,5.92513071]
[1730708783852,1.46228071,2465.6,2465.0,1.01505]
[1730708784052,0.40594,2465.5,2465.4,0.40595]
[1730708784350,0.40596,2465.4,2465.3,0.40597]
[1730708784752,1.46228071,2465.5,2465.1,0.8523]
[1730708784940,0.40594,2465.5,2465.4,0.40595]
[1730708785849,1.46228071,2465.5,2465.4,0.40595]
[1730708786051,1.86822071,2465.5,2465.4,0.40595]
[1730708787759,1.86822071,2465.6,2465.5,0.40594]
[1730708789159,1.46228071,2465.6,2465.5,0.40594]
[1730708789349,1.86820071,2465.6,2465.5,0.40594]
[1730708789953,1.46228071,2465.6,2465.5,0.40594]
[1730708790550,1.86820071,2465.6,2465.5,0.40594]
[1730708790746,3.2078,2465.7,2465.5,4.056]
[1730708790947,3.2078,2465.7,2465.6,0.83612]
[1730708791457,2.29896071,2465.9,2465.8,0.40589]
[1730708791656,1.89308071,2465.9,2465.8,0.40589]
[1730708792047,2.29895071,2465.9,2465.8,0.40589]
[1730708792253,1.89308071,2465.9,2465.8,0.40589]
[1730708792658,4.062,2466.0,2465.9,0.40587]
[1730708792659,3.2078,2466.0,2465.9,0.40587]
[1730708792859,3.61365,2466.0,2465.9,0.40587]
[1730708793347,4.04075,2466.0,2465.9,0.40587]
[1730708796267,3.2078,2466.0,2465.9,0.40587]
[1730708796963,3.61365,2466.0,2465.9,0.40587]
[1730708797357,3.2078,2466.0,2465.9,0.40587]
[1730708797561,0.85473,2466.2,2466.1,0.40584]
[1730708798758,0.85473,2466.2,2466.1,0.85494]
[1730708799064,0.40584,2466.1,2466.0,1.32175]
[1730708799762,0.40587,2465.9,2465.8,0.40588]
[1730708799956,3.2078,2465.9,2465.4,1.46228071]
[1730708800155,5.51748071,2466.0,2465.2,3.2078]
[1730708800156,0.40597,2465.3,2465.2,3.2078]
[1730708800364,1.46228071,2465.5,2465.4,0.40595]
[1730708800365,0.40595,2465.5,2465.4,0.40595]
[1730708801157,0.40595,2465.5,2465.4,0.86135]
[1730708802363,0.40595,2465.5,2465.4,0.40595]
[1730708804264,3.61373,2465.6,2465.5,0.40594]
[1730708804864,7.2638,2465.6,2465.2,1.46228071]
[1730708805165,0.40597,2465.4,2465.3,0.40595]
[1730708805967,3.61377,2465.4,2465.3,0.40595]
[1730708812972,4.05467,2465.4,2465.3,0.40595]
[1730708813169,4.47707,2465.4,2465.3,0.40595]
[1730708814972,0.40597,2465.3,2465.2,0.85968]
[1730708815172,4.47706,2465.4,2465.3,0.40597]
[1730708815972,0.4611,2465.5,2465.2,1.46228071]
[1730708816169,0.86704,2465.5,2465.4,0.40595]
[1730708816576,0.4611,2465.5,2465.4,0.40595]
[1730708816869,0.85951,2465.7,2465.6,0.40592]
[1730708817071,3.2078,2465.8,2465.7,0.4059]
[1730708817270,3.2078,2465.8,2465.7,1.86818071]
[1730708817467,3.61369,2465.8,2465.7,0.4059]
[1730708817863,0.40592,2465.6,2465.5,1.28572]
[1730708818069,1.86820071,2465.6,2465.5,0.8798]
[1730708818269,1.86820071,2465.6,2465.4,0.40594]
[1730708818270,0.40595,2465.5,2465.4,0.40594]
[1730708818776,1.342,2465.7,2465.3,1.46228071]
[1730708818978,0.40593,2465.6,2465.5,0.40592]
[1730708819979,1.342,2465.7,2465.3,2.47720071]
[1730708820279,1.74792,2465.7,2465.6,0.40592]
[1730708820579,1.342,2465.7,2465.3,2.47720071]
[1730708820769,1.342,2465.7,2465.4,0.40593]
[1730708820770,3.61375,2465.5,2465.4,0.40593]
[1730708822784,3.61374,2465.5,2465.4,0.40593]
[1730708823777,3.2078,2465.9,2465.4,5.51828071]
[1730708823982,3.2078,2465.9,2465.8,0.40589]
[1730708824185,3.61367,2465.9,2465.8,0.40589]
[1730708825077,3.2078,2465.9,2465.8,0.40589]
[1730708825277,3.61367,2465.9,2465.8,0.40589]
[1730708825580,3.2078,2465.9,2465.8,0.40589]
[1730708828589,3.2078,2465.9,2465.8,1.86817071]
[1730708828790,3.2078,2465.9,2465.8,5.92337071]
[1730708829090,0.8974,2466.3,2465.8,5.51748071]
[1730708829290,4.22222,2466.6,2466.1,1.46228071]
[1730708829491,4.22222,2466.6,2466.3,0.40578]
[1730708829492,0.4058,2466.4,2466.3,0.40578]
[1730708829894,0.40579,2466.5,2466.4,0.40577]
[1730708830695,3.6658,2466.6,2466.5,0.40577]
[1730708830891,3.2078,2466.6,2466.5,0.40577]
[1730708831900,3.2078,2466.6,2466.4,1.46228071]
[1730708831901,0.40573,2466.8,2466.7,0.40574]
[1730708832203,0.40576,2466.6,2466.5,1.86804071]
[1730708832392,0.40575,2466.7,2466.6,0.40574]
[1730708833193,0.40576,2466.7,2466.6,0.40574]
[1730708834790,0.40574,2466.8,2466.7,0.40572]
[1730708834997,2.30741764,2466.9,2466.3,1.4694]
[1730708835193,3.61355,2466.7,2466.6,0.40574]
[1730708835892,0.40575,2466.7,2466.6,0.40574]
[1730708840191,3.61353,2466.8,2466.3,1.4694]
[1730708840391,3.61353,2466.8,2466.7,0.40574]
[1730708841189,3.2078,2466.8,2466.7,0.40574]
[1730708841500,3.61352,2466.8,2466.7,0.40574]
[1730708843796,0.40572,2466.8,2466.7,0.40574]
[1730708844698,0.40572,2466.8,2466.7,0.84294]
[1730708845702,0.40572,2466.8,2466.7,0.40574]
[1730708846595,0.40572,2466.8,2466.4,1.01446]
[1730708846596,0.40579,2466.5,2466.4,0.40577]
[1730708846797,0.40581,2466.4,2466.3,0.40579]
[1730708846999,4.04081,2466.4,2466.3,0.40579]
[1730708847297,0.40581,2466.3,2466.2,1.26411]
[1730708852099,0.40584,2466.2,2466.1,0.40583]
[1730708852306,0.40587,2466.0,2465.9,0.40585]
[1730708852606,0.40587,2465.9,2465.8,0.84328]
[1730708853103,0.40587,2465.9,2465.8,0.4374]
[1730708853400,0.40592,2465.7,2465.6,0.40591]
[1730708853604,3.61372,2465.7,2465.6,0.40591]
[1730708853904,0.4576,2466.0,2465.5,0.4374]
[1730708854109,0.40588,2465.9,2465.8,0.40587]
[1730708855401,0.86347,2466.0,2465.9,0.40587]
[1730708857705,0.60795862,2465.9,2465.7,1.90986]
[1730708857904,1.01382862,2465.9,2465.8,0.40589]
[1730708858707,0.60795862,2465.9,2465.8,0.40589]
[1730708859204,1.01382862,2465.9,2465.8,0.40589]
[1730708859408,0.60795862,2465.9,2465.8,0.40589]
[1730708862511,0.60795862,2465.9,2465.8,4.46109]
[1730708863706,0.60795862,2465.9,2465.8,7.66889]
[1730708864009,0.60795862,2465.9,2465.8,8.22921468]
[1730708864214,0.60795862,2465.9,2465.8,8.22926881]
[1730708865107,0.4058,2466.4,2466.3,0.40579]
[1730708867321,0.4058,2466.4,2466.3,1.8675699]
[1730708869315,0.4058,2466.4,2466.3,0.40579]
[1730708869522,0.8244,2466.4,2466.3,0.40579]
[1730708872728,3.2078,2466.5,2466.3,1.8675699]
[1730708873131,0.40579,2466.4,2466.3,1.8675699]
[1730708876434,0.40579,2466.4,2466.3,1.4617799]
[1730708876635,0.40581,2466.3,2466.2,0.40581]
[1730708878328,0.40581,2466.4,2466.3,0.40579]
[1730708878933,3.2078,2466.5,2466.2,0.40581]
[1730708878934,0.40581,2466.3,2466.2,0.40581]
[1730708879134,0.85911,2466.3,2466.2,0.40581]
[1730708881132,0.4533,2466.3,2466.2,0.40581]
[1730708881331,0.85911,2466.3,2466.2,0.40581]
[1730708882731,0.4533,2466.3,2466.2,0.40581]
[1730708883034,0.85911,2466.3,2466.2,0.40581]
[1730708883939,0.4533,2466.3,2466.2,0.40581]
[1730708884441,0.85911,2466.3,2466.2,0.40581]
[1730708884833,0.4533,2466.3,2466.2,0.40581]
[1730708885338,0.85911,2466.3,2466.2,0.40581]
[1730708885744,0.4533,2466.3,2466.2,0.40581]
[1730708886134,0.85911,2466.3,2466.2,0.40581]
[1730708886334,0.4533,2466.3,2466.2,0.40581]
[1730708888034,0.4533,2466.3,2466.2,2.2905899]
[1730708888946,1.46696419,2466.3,2466.2,2.2905899]
[1730708889243,1.01366419,2466.3,2466.2,2.2905899]
[1730708889441,1.01366419,2466.3,2466.2,2.85832909]
[1730708890435,1.01366419,2466.3,2466.2,6.91272909]